Cogmind - Beta 12 @@@ ROGUE MODE // 2023.03.06 @ 16:16:45 Player: Elxavo Result: Destroyed by Y-45 Defender with Beam Rifle Performance ------------- Evolutions (1) 500 Regions Visited (4) 800 Robots Destroyed (33) 165 Value Destroyed (769) 769 Prototype IDs (0) 0 Alien Tech Used (0) 0 Bonus (0) 0 TOTAL SCORE: 2234 Bonus ------- None Cogmind --------- Core Integrity 0/400 Matter 167/300 Energy 100/100 System Corruption 10% Temperature Cool (9) Movement Treading (320) Ox2 Location -9/Storage Parts ------- > --- POWER (2) -------- (None) > --- PROPULSION (2) --- Light Treads > --- UTILITY (3) ------ High-capacity Storage Unit Terrain Scan Processor Utility Shielding > --- WEAPON (2) ------- (None) > --- INVENTORY (20) --- Aluminum Leg Aluminum Leg High-capacity Storage Unit Visual Processing Unit Seismic Detector Peak State ------------ > --- POWER ------------ Ion Engine Improved Ion Engine > --- PROPULSION ------- Aluminum Leg Aluminum Leg > --- UTILITY ---------- High-capacity Storage Unit Improved Terrain Scanner Terrain Scan Processor > --- WEAPON ----------- Light Assault Rifle Light Assault Rifle > --- INVENTORY -------- Light Ion Engine Aluminum Leg Visual Processing Unit Seismic Detector Grenade Launcher [Rating: 13] Favorites ----------- Power Ion Engine Engine Ion Engine Propulsion Aluminum Leg Treads Light Treads Leg Aluminum Leg Utility High-capacity Storage Unit Device Improved Terrain Scanner Storage High-capacity Storage Unit Processor Terrain Scan Processor Protection Utility Shielding Weapon Light Assault Rifle Energy Gun Small Laser Ballistic Gun Light Assault Rifle Ballistic Cannon Light Cannon Launcher Grenade Launcher Build | -11 -10 -10 -9 -9 ------- Run | Jun Mat Min Mat Sto Slots Evolved 2 | . . . 2 . Power 1 | . . . 1 . Propulsion . | . . . . . Utility 1 | . . . 1 . Weapon . | . . . . . Parts Attached 29 | 8 1 6 2 12 Power 6 | 1 . 1 1 3 Engine 6 | 1 . 1 1 3 Core . | . . . . . Reactor . | . . . . . Propulsion 9 | 2 . 2 . 5 Treads 4 | . . . . 4 Leg 5 | 2 . 2 . 1 Wheel . | . . . . . Hover . | . . . . . Flight . | . . . . . Utility 6 | 2 1 1 1 1 Device 2 | 2 . . . . Storage 2 | . 1 1 . . Processor 1 | . . . 1 . Hackware . | . . . . . Protection 1 | . . . . 1 Artifact . | . . . . . Weapon 8 | 3 . 2 . 3 Energy Gun 3 | 2 . . . 1 Energy Cannon . | . . . . . Ballistic Gun 3 | 1 . 2 . . Ballistic Cannon 1 | . . . . 1 Launcher 1 | . . . . 1 Special Weapon . | . . . . . Impact Weapon . | . . . . . Slashing Weapon . | . . . . . Piercing Weapon . | . . . . . Special Melee Weapon . | . . . . . Unidentified Prototypes . | . . . . . Parts Lost 17 | . . 4 . 13 Power 5 | . . 1 . 4 Propulsion 5 | . . 2 . 3 Utility 1 | . . . . 1 Weapon 6 | . . 1 . 5 Highest Loss Streak 5 | . . 4 . 5 To Critical Strikes . | . . . . . Average Slot Usage (%) 91 | . 99 99 100 82 Engine 14 | . 14 13 22 13 Treads 3 | . . . . 7 Leg 21 | . 28 27 22 13 Device 9 | . 18 14 11 3 Storage 11 | . 9 14 11 11 Processor 5 | . . . 11 11 Protection 1 | . . . . 3 Energy Gun 3 | . 14 4 . . Ballistic Gun 17 | . 14 23 22 13 Ballistic Cannon 1 | . . . . 2 Launcher 1 | . . . . 2 Naked Turns . | . . . . . Heaviest Build 55 | 10 14 48 51 55 Greatest Support 40 | 20 20 20 20 40 Greatest Overweight (x) 2 | 1 . 2 2 2 Average Overweight (x) 1 | . . 1 2 1 Largest Inventory Capacity 20 | 5 8 20 20 20 Average Capacity 16 | 5 7 18 20 20 Most Carried 10 | 5 8 9 4 10 Average Carried 6 | 4 6 6 3 6 Final Capacity 20 | 5 8 20 20 20 Final Carried 8 | 5 8 5 3 5 Class Distribution -------------------- 56% | Scavenger-Mutant 43% | Mutant Dominant Class ---------------- Mutant | -10/Materials Scavenger-Mutant | -10/Mines Scavenger-Mutant | -9/Materials Scavenger-Mutant | -9/Storage Resources | -11 -10 -10 -9 -9 ----------- Run | Jun Mat Min Mat Sto Matter Collected 637 | 273 68 70 . 226 Remotely . | . . . . . Salvage Created 979 | 109 175 47 . 648 Parts 61 | 10 14 4 . 33 Haulers Intercepted . | . . . . . Recyclers Shooed 1 | 1 . . . . Parts Field Recycled . | . . . . . Retrieved Matter . | . . . . . Parts Self-Destructed . | . . . . . Prevented . | . . . . . Kills | -11 -10 -10 -9 -9 ------- Run | Jun Mat Min Mat Sto Combat Hostiles Destroyed 23 | . 3 4 . 16 Guns 18 | . 3 4 . 11 Cannons 1 | . . . . 1 AOE 4 | . . . . 4 Classes Destroyed 7 | 2 2 1 . 2 Worker 1 | . . . . 1 Tunneler 2 | 2 . . . . Recycler 3 | 1 . . . 2 Watcher 4 | . 3 . . 1 Swarmer 6 | . . 2 . 4 Grunt 12 | . 3 1 . 8 Sentry 4 | . . . . 4 Best Kill Streak 8 | 2 2 2 . 8 Combat Bots Only 6 | . 2 2 . 6 Max Kills in Single Turn 2 | 1 1 1 . 2 Gunslinging . | . . . . . Exploded 1 | . . . . 1 Melee . | . . . . . Uniques/NPCs Destroyed 1 | . . 1 . . YI-UF0 (-10/Mines) Combat | -11 -10 -10 -9 -9 -------- Run | Jun Mat Min Mat Sto Damage Taken 2385 | . 89 462 . 1834 Core 500 | . 12 79 . 409 Absorbed by Shields . | . . . . . Core Remaining (%) 81 | 100 . 63 . . Volleys Fired 117 | 10 16 13 . 78 Largest 2 | 2 2 2 . 2 Hottest 80 | 80 60 60 . 76 Shots Fired 199 | 20 32 24 . 123 Gun 168 | 20 32 24 . 92 Cannon 18 | . . . . 18 Launcher 13 | . . . . 13 Special . | . . . . . Kinetic 125 | 1 16 13 . 95 Thermal 61 | 19 16 11 . 15 Explosive 13 | . . . . 13 Electromagnetic . | . . . . . Robot Hit Streak 12 | 11 9 5 . 12 Robot Miss Streak 4 | 2 3 4 . 3 Penetration Max . | . . . . . Secondary Targets 1 | . . . . 1 Max Gunslinging Chain 1 | . . . . 1 Shots Hit Robots 131 | 15 20 12 . 84 Core Hits 54 | 4 9 6 . 35 Critical Kills 1 | . . . . 1 Critical Parts Destroyed . | . . . . . Critical Strikes 2 | . . . . 2 Destroy 1 | . . . . 1 Blast 1 | . . . . 1 Melee Attacks . | . . . . . Impact . | . . . . . Slashing . | . . . . . Piercing . | . . . . . Sneak Attacks . | . . . . . Combat Hostiles . | . . . . . Follow-up Attacks . | . . . . . Damage Inflicted 1919 | 167 243 117 . 1392 Guns 1050 | 167 243 117 . 523 Cannons 264 | . . . . 264 Explosions 605 | . . . . 605 Melee . | . . . . . Ramming . | . . . . . Kinetic 951 | 13 165 75 . 698 Thermal 363 | 154 78 42 . 89 Explosive 605 | . . . . 605 Electromagnetic . | . . . . . Impact . | . . . . . Slashing . | . . . . . Piercing . | . . . . . Highest Corruption 10 | . . . . 10 Average Corruption 10 | . . . . 10 Corruption Purged . | . . . . . Corruption Blocked . | . . . . . Effects 2 | . . . . 2 Message Errors 2 | . . . . 2 Overload Shots . | . . . . . Overflow Damage 29 | . . . . 29 Projectiles . | . . . . . Explosions 29 | . . . . 29 Melee . | . . . . . Knockbacks . | . . . . . Impact . | . . . . . Kinetic . | . . . . . Secondary . | . . . . . Self-Inflicted Damage 103 | . . . . 103 Shots 5 | . . . . 5 Rammed . | . . . . . Targets Rammed . | . . . . . Kicked . | . . . . . Crushed . | . . . . . Highest Temperature 108 | 108 36 20 . 78 Average Temperature 23 | 53 12 10 . 18 Received Heat Transfer 597 | . 48 9 . 540 Siege Activations . | . . . . . Robots Corrupted . | . . . . . Combat Hostiles . | . . . . . Parts Fried . | . . . . . Impact Corruptions . | . . . . . Robots Melted . | . . . . . Combat Hostiles . | . . . . . Parts Melted 2 | 1 . . . 1 Heat Transferred 847 | 350 175 100 . 222 Parts Sabotaged . | . . . . . Parts Stolen . | . . . . . Parts Stripped . | . . . . . Power Chain Reactions . | . . . . . Missiles Intercepted . | . . . . . Alert | -11 -10 -10 -9 -9 ------- Run | Jun Mat Min Mat Sto Peak Influence 346 | 15 145 126 . 346 Initial 56 | . 9 56 . . Average 97 | 5 82 55 . 156 Maximum Alert Level 1 | . . . . 1 Low Security (%) 86 | 100 100 100 100 68 Level 1 13 | . . . . 31 Level 2 . | . . . . . Level 3 . | . . . . . Level 4 . | . . . . . Level 5 . | . . . . . High Security . | . . . . . Max Security . | . . . . . Squads Dispatched 3 | . 1 . . 2 Investigation . | . . . . . Extermination . | . . . . . Reinforcement 3 | . 1 . . 2 Assault . | . . . . . Garrison . | . . . . . Intercept . | . . . . . Searches Triggered . | . . . . . Construction Impeded . | . . . . . Haulers Reinforced . | . . . . . Active Scanning Responses . | . . . . . Cargo Convoy Interrupts . | . . . . . Stealth | -11 -10 -10 -9 -9 --------- Run | Jun Mat Min Mat Sto Distress Signals 3 | . 2 . . 1 Communications Jammed . | . . . . . Distress Signals . | . . . . . Times Spotted 38 | . 8 6 . 24 Peak Tracking Total 5 | . 3 3 . 5 Tactical Retreats 1 | . . . . 1 Traps | -11 -10 -10 -9 -9 ------- Run | Jun Mat Min Mat Sto Traps Triggered . | . . . . . Indirectly . | . . . . . Trap Hack Attempts . | . . . . . Triggered . | . . . . . Disarmed . | . . . . . Reprogrammed . | . . . . . Reused . | . . . . . Traps Extracted . | . . . . . Installed . | . . . . . Triggered . | . . . . . Machines | -11 -10 -10 -9 -9 ---------- Run | Jun Mat Min Mat Sto Machines Disabled 1 | . . . . 1 Max in Single Turn 1 | . . . . 1 Machines Repaired . | . . . . . Machines Sabotaged . | . . . . . Overloaded Fab Kills . | . . . . . Hacking | -11 -10 -10 -9 -9 --------- Run | Jun Mat Min Mat Sto Machines Accessed 2 | . 1 . . 1 Terminals 1 | . 1 . . . Fabricators . | . . . . . Repair Stations . | . . . . . Recycling Units 1 | . . . . 1 Scanalyzers . | . . . . . Garrison Access . | . . . . . Total Hacks 5 | . 2 . . 3 Successful 5 | . 2 . . 3 Failed . | . . . . . Catastrophic . | . . . . . Database Lockouts . | . . . . . Manual 1 | . . . . 1 Terminals 2 | . 2 . . . Fabricators . | . . . . . Repair Stations . | . . . . . Recycling Units 3 | . . . . 3 Scanalyzers . | . . . . . Garrison Access . | . . . . . Terminal Hacks 2 | . 2 . . . Record 1 | . 1 . . . Maintenance Status 1 | . 1 . . . Fabricator Hacks . | . . . . . Repair Station Hacks . | . . . . . Recycling Unit Hacks 3 | . . . . 3 Recycle Component 1 | . . . . 1 Process 1 | . . . . 1 Retrieve Matter 1 | . . . . 1 Scanalyzer . | . . . . . Garrison Access Hacks . | . . . . . Unauthorized Hacks . | . . . . . Terminals . | . . . . . Fabricators . | . . . . . Repair Stations . | . . . . . Recycling Units . | . . . . . Scanalyzers . | . . . . . Garrison Access . | . . . . . Data Cores Recovered . | . . . . . Used . | . . . . . Hacking Detections 2 | . 1 . . 1 Full Trace Events . | . . . . . Feedback Events . | . . . . . Feedback Blocked . | . . . . . Robot Schematics Acquired . | . . . . . Robots Built . | . . . . . Authchips . | . . . . . Time . | . . . . . Total Robot Build Rating . | . . . . . Part Schematics Acquired . | . . . . . Parts Built . | . . . . . Authchips . | . . . . . Time . | . . . . . Total Part Build Rating . | . . . . . Parts Repaired . | . . . . . Time . | . . . . . Parts Recycled 1 | . . . . 1 Recycled Matter 199 | . . . . 199 Retrieved Matter 199 | . . . . 199 Retrieved Components . | . . . . . Parts Scanalyzed . | . . . . . Part Schematics Acquired . | . . . . . Parts Damaged . | . . . . . Bothacking | -11 -10 -10 -9 -9 ------------ Run | Jun Mat Min Mat Sto Used RIF Installer . | . . . . . Robots Hacked . | . . . . . Non-combat . | . . . . . Combat . | . . . . . Robot Hacks Applied . | . . . . . Relay Couplers Released . | . . . . . Fabnet Peak Effective % . | . . . . . Robots Rewired . | . . . . . Allies Hacked . | . . . . . Hacks Repelled . | . . . . . Allies | -11 -10 -10 -9 -9 -------- Run | Jun Mat Min Mat Sto Total Allies . | . . . . . Largest Group . | . . . . . Highest-Rated Group . | . . . . . Highest-Rated Ally . | . . . . . Total Orders . | . . . . . Ally Attacks . | . . . . . Total Damage . | . . . . . Kills . | . . . . . Allies Corrupted . | . . . . . Allies Melted . | . . . . . Intel | -11 -10 -10 -9 -9 ------- Run | Jun Mat Min Mat Sto Robot Analysis Total . | . . . . . Derelict Logs Recovered . | . . . . . Drone Launches . | . . . . . Drone Recoveries . | . . . . . Exploration | -11 -10 -10 -9 -9 ------------- Run | Jun Mat Min Mat Sto Turns Passed 1929 | 121 267 672 49 820 Spaces Moved 749 | 73 164 260 19 233 Core 22 | 22 . . . . Treads 84 | . . . . 84 Legs 643 | 51 164 260 19 149 Wheels . | . . . . . Hover . | . . . . . Flight . | . . . . . Fastest Speed 50 | 50 120 120 260 240 Average Speed 203 | 100 120 235 260 255 Slowest Speed 320 | 120 120 260 260 320 Overloaded Moves . | . . . . . Propulsion Burnouts . | . . . . . Robots Hopped . | . . . . . Cave-ins Triggered 1 | . . . . 1 Exploration Rate (%) 28 | 7 26 69 3 35 Regions Visited 4 Branch Regions 2 Pre-discovered Areas . | . . . . . Known Exits Taken . | . . . . . Unknown Exits Taken 4 | 1 1 1 1 . Scrap Searched 2 | . . 2 . . Spaces Dug . | . . . . . Terrain Destroyed 73 | . . . . 73 Melee . | . . . . . Projectile . | . . . . . AOE 73 | . . . . 73 Terrain Rammed . | . . . . . Walls Destroyed . | . . . . . Machines Disabled . | . . . . . Actions | -11 -10 -10 -9 -9 --------- Run | Jun Mat Min Mat Sto Total 973 | 99 203 300 20 351 Wait 46 | . 14 17 . 15 Move 745 | 72 163 259 18 233 Hop . | . . . . . Pick Up 29 | 9 6 2 . 12 Fast Attach 3 | 3 . . . . Attach 19 | 4 1 4 2 8 Detach . | . . . . . Swap 7 | 1 . 2 . 4 Drop 7 | . 3 3 . 1 Fire 117 | 10 16 13 . 78 Melee . | . . . . . Ram . | . . . . . Kick . | . . . . . Crush . | . . . . . Escape Stasis . | . . . . . Rewire . | . . . . . Trap . | . . . . . Miscellaneous . | . . . . . Route ------- -11/Junkyard -10/Materials -10/Mines -9/Materials -9/Storage History --------- Turn | Location | Event 5 | -11/Junkyard | Discovered new exit (range 15) 122 | -11/Junkyard | Entered Materials 307 | -10/Materials | Build established: Mutant 350 | -10/Materials | Discovered new exit (range 16) 389 | -10/Materials | Entered Mines 508 | -10/Mines | YI-UF0 nonchalantly dropped a Grenade Launcher on the ground 591 | -10/Mines | Destroyed YI-UF0 620 | -10/Mines | Lost 4 parts (1p2n1w) 902 | -10/Mines | Build established: Scavenger-Mutant 1045 | -10/Mines | Discovered new exit (range 5) 1061 | -10/Mines | Entered Materials 1061 | -9/Materials | Evolved 2 slots: Power x1, Utility x1 1071 | -9/Materials | Discovered new exit (range 15) 1110 | -9/Materials | Entered Storage 1701 | -9/Storage | Lost 5 parts (2p1n2w) 1820 | -9/Storage | Core integrity fell below 50% 1875 | -9/Storage | Core integrity fell below 20% 1876 | -9/Storage | Crushed by falling debris 1876 | -9/Storage | System corruption reached 10% 1907 | -9/Storage | Lost 4 parts (1p1n2w) 1930 | -9/Storage | Destroyed by Y-45 Defender with Beam Rifle Last Messages --------------- 01863_ U-05 Engineer builds a Wall. 01869_ U-05 Engineer lays Concrete. 01870_ U-05 Engineer builds a Wall. 01871_ U-05 Engineer lays Concrete. 01872_ U-05 Engineer builds a Wall. 01876_ The unstable cave ceiling collapses. 01876_ Crushed by falling debris. [Achievement: Unlikely Earthworm] 01876_ Ion Engine destroyed. 01876_ System corrupted by crushing effect (+5). 01876_ Lgt. Cannon destroyed. 01876_ System corrupted by crushing effect (+5). 01876_ U-05 Engineer builds a Wall. 01881_ U-05 Engineer lays Concrete. 01883_ GNT %:Q8UCG8U>:QMVTG6: |IGHN 01900_ | G9LHUB8J7AZR1F=5<=F4A=99KRXGLVRCS5 01900_ U-05 Engineer forms the Earth. 01901_ U-05 Engineer builds a Wall. 01927_ Critical hit (Burn: +37). 01927_ Lgt. Treads destroyed. Map ----- +----------------------------------------------------+ | ??#? ??""!" ## # ####???????????????????????????? | | ###? ? ? """ #?## #????????? ????????????????????? | | ?### ? ####+######??? #????????????????????? | | ####?#?####### #?## ?????????????????????? | | ????## """""" +? ??????????????????????? | | ??"?"??"???##??????" # ??#????????????????????? | | """ "?"?#?# ?????" # #????????????????????? | | ? ?""" "???#?# """""" + #????????????????????? | | ? ? ? ? ### #### #????????????????????? | | ? ???# # #?#????????????????????? | | ? ? ? ???## #% # #???#????????????????? | | #####+############+###### # # #????????????????? | | %%*%! +????????????????? | | ###! ### #????????????????? | | # ###?????????????????????? | | ## #########+##+ # # ###?????????????????????? | | ## ###?#???? ##### ##?????????????????????? | | ??? #?##??? """" ## #?????????????????????? | | ## ? #???? ?????" ## "T" #??????#??????????????? | | ?? ? ##??#???????" ## #????" #??????????????? | | ## ? ?#???????????"%## !!=#????" #??????????????? | | ???#?#?#???????"%?# !==#???"" #??????????????? | | # ? ?????????????"%?# !==#???"" ???????????????? | | #?? ??#??????????? %?# #?? ????????????????? | | #?? ??#??????#####+#####+#####k#### #????????? | | # ?? ???? u/ ^ Y @ Y a + ! #????????? | | ? ?? ???????????## u ########## #????????? | | #? ??????????????# #???????????????????????? | | ??? ?????????????# #???????????????????????? | | # ??????????????# #???????????????????????? | | #?????????????? !! #???????????????????????? | | #?+??????????# # !! #???????????????????????? | | ? ??????????###?# !! #???????????????????????? | | ?????????????????# #???????????????????????? | | ????????????????+ ???????????????????????? | | ? ???????????????#######+#???????????????????????? | | ?????????????????????????????????????????????????? | | ?????????????????????????????????????????????????? | | ?????????????????????????????????????????????????? | | ?????????????????????????????????????????????????? | | ?????????????????????????????????????????????????? | | | | | | | | | | | | | | | | | | | +----------------------------------------------------+ Best States ------------- Heat Dissipation 28 Energy Generation 17 Energy Capacity 415 Matter Stores 300 Matter Capacity 300 Sight Range 16 Terrain Scan Range 16 Terrain Scan Density 85 Utility Shielding 33 Evasion (%) 55 Recoil Reduction 2 Item Schematics ----------------- None Robot Schematics ------------------ None Fabricated ------------ Nothing Alien Tech Used ----------------- None Achievements -------------- Unlikely Earthworm Challenges ------------ None Game ------ Seed ThrusterThermalAccelerator Manual? 0 Play Time 00:28:07 Cumulative 9.3 hours Start 2023.03.06 @ 06:52:35 End 2023.03.06 @ 16:16:45 Sessions 2 Manual Loads 0 Difficulty Rogue Special Mode None Game No. 8 Rogue 8 Adventurer 0 Explorer 0 Win Type - Total 0 Types 0/0/0/0/0/0/0/0/0 Lore% 6 Gallery% 11 Achievement% 12 Wizard Run 0 Options --------- ASCII 0 Keyboard 0 Movement Mouse Keybinds 0 Fullscreen 1 Font 16/Terminus Map View 76x50 Tactical HUD 1 Map Filters NONE Filters NONE Steam 1 RUN: 6b6ba5cf-4cce-4110-99c0-22f724dff44e